fUSD/lending_fUSD_20241001
["ID","MTS","AMOUNT","RATE_DAILY","PERIOD"]
[339657625,1727815840063,-704.74178858,0.00011,2]
[339657626,1727815840074,-440.96864,0.00011,2]
[339657627,1727815840090,-425.0,0.00011,2]
[339657628,1727815840101,-485.18718183,0.00011,2]
[339657629,1727815840113,-22194.97216554,0.00011,2]
[339657630,1727815840124,-1765.19999999,0.00011,2]
[339657631,1727815840135,-18174.0,0.00011,2]
[339657632,1727815840148,-2420.17776,0.00011,2]
[339657633,1727815840159,-565.01131165,0.00011,2]
[339657634,1727815840171,-373.3443113,0.00011,2]
[339657635,1727815840181,-24384.02339862,0.00011,2]
[339657637,1727815840199,-5455.00423591,0.00011,2]
[339657638,1727815840217,-300.0,0.00011,2]
[339657639,1727815840229,-594.39655094,0.00011,2]
[339657699,1727815843090,-422.00974203,0.00011,2]
[339657701,1727815843102,-6619.57676662,0.00011,2]
[339657703,1727815843113,-1282.870548,0.00011,2]
[339657706,1727815843125,-1290.00517015,0.00011,2]
[339657708,1727815843136,-5016.91366107,0.00011,2]
[339657710,1727815843148,-2206485.46033248,0.00011,2]
[339657712,1727815843162,-6057.5,0.00011,2]
[339657717,1727815843210,-12149.712,0.00011,2]
[339657719,1727815843221,-27253.19211002,0.00011,2]
[339657721,1727815843233,-5139.20082311,0.00011,2]
[339657723,1727815843244,-1210.0,0.00011,2]
[339657726,1727815843255,-4263.0,0.00011,2]
[339657728,1727815843267,-2616.23534342,0.00011,2]
[339657730,1727815843278,-1008.098861,0.00011,2]
[339657732,1727815843291,-342.55935128,0.00011,2]
[339657734,1727815843302,-16663.41501804,0.00011,2]
[339657736,1727815843314,-500.0,0.00011,2]
[339657741,1727815843345,-609.09849,0.00011,2]
[339657743,1727815843356,-21409.91821442,0.00011,2]
[339657771,1727815846721,-300.0,0.000109,2]
[339657772,1727815846733,-557.685,0.000109,2]
[339657773,1727815846743,-5713.715,0.00011,2]
[339657774,1727815846754,-59999.96724,0.00011,2]
[339657775,1727815846765,-3274.01606386,0.00011,2]
[339657776,1727815846776,-322.8916,0.00011,2]
[339657777,1727815846786,-859.71593629,0.00011,2]
[339657778,1727815846797,-3484.31906734,0.00011,2]
[339657779,1727815846808,-3039.1662,0.00011,2]
[339657780,1727815846819,-18213.0,0.00011,2]
[339657781,1727815846830,-7490.88913927,0.00011,2]
[339657782,1727815846848,-326.081,0.00011,2]
[339657783,1727815846859,-477.242,0.00011,2]
[339657784,1727815846871,-1143.278,0.00011,2]
[339657785,1727815846883,-5686.35000001,0.00011,2]
[339657786,1727815846912,-6005.209177,0.00011,2]
[339657787,1727815846922,-1253.16529958,0.00011,2]
[339657788,1727815846933,-3001.3,0.00011,2]
[339657789,1727815846948,-484.7,0.00011,2]
[339657790,1727815846977,-401.21832325,0.00011,2]
[339657791,1727815846987,-24060.66370396,0.00011,2]
[339657792,1727815846998,-16744.559,0.00011,2]
[339657793,1727815847009,-3490.9987,0.00011,2]
[339657794,1727815847020,-2366.29051615,0.00011,2]
[339657795,1727815847031,-42372.99731085,0.00011,2]
[339657796,1727815847040,-230402.76193121,0.00011,2]
[339657797,1727815847049,-176.02,0.00011,2]
[339657798,1727815847058,-150.31,0.0001144,2]
[339657799,1727815847067,-23900.0,0.0001145,2]
[339657800,1727815847076,-360.03898589,0.00011502,2]
[339657801,1727815847086,-2751.0,0.00011507,2]
[339657802,1727815847095,-771.29,0.0001151,2]
[339657803,1727815847104,-171.33,0.00011536,2]
[339657804,1727815847114,-250.0,0.00011567,2]
[339657805,1727815847123,-2000.0,0.00011611,2]
[339657806,1727815847132,-292.87,0.00011673,2]
[339657807,1727815847142,-250.0,0.00011673,2]
[339657808,1727815847155,-1585.15,0.00011701,2]
[339657809,1727815847164,-242.95,0.00011705,2]
[339657810,1727815847174,-250.0,0.00011726,2]
[339657811,1727815847183,-281.48,0.00011738,2]
[339657812,1727815847196,-155.41,0.00011766,2]
[339657813,1727815847205,-7507.29,0.00011822,2]
[339657814,1727815847215,-912.77,0.0001186,2]
[339657815,1727815847226,-420.0,0.00011977,2]
[339657816,1727815847235,-1000.0,0.0001198,2]
[339657817,1727815847245,-156.62,0.00012156,2]
[339657818,1727815847255,-15053.0,0.0001221,2]
[339657819,1727815847265,-170.88,0.00012654,2]
[339657820,1727815847274,-640.91615652,0.00012884,2]
[339657821,1727815847284,-2374.31376487,0.0001289,2]
[339657822,1727815847295,-14860.27,0.000129,2]
[339657823,1727815847305,-1000.0,0.000129,2]
[339657824,1727815847314,-1000.0,0.000129,2]
[339657825,1727815847324,-1000.0,0.000129,2]
[339657826,1727815847333,-1000.0,0.000129,2]
[339657827,1727815847344,-1000.0,0.000129,2]
[339657828,1727815847353,-461.69757885,0.000129,2]
[339657829,1727815847365,-465.20613408,0.000129,2]
[339657830,1727815847450,-73.09628707,0.000129,2]
[339657831,1727815847459,-1000.0,0.000129,2]
[339657832,1727815847469,-1000.0,0.000129,2]
[339657833,1727815847478,-1000.0,0.000129,2]
[339657834,1727815847487,-1000.0,0.000129,2]
[339657835,1727815847496,-300.0,0.00013,2]
[339657836,1727815847506,-357.81,0.00013065,2]
[339657837,1727815847516,-292.87,0.00013132,2]
[339657838,1727815847525,-587.0,0.00013163,2]
[339657839,1727815847534,-1264.0,0.0001328,2]
[339657840,1727815847544,-746.309,0.0001328,2]
[339657841,1727815847553,-810.0,0.0001328,2]
[339657842,1727815847563,-559.0,0.0001328,2]
[339657843,1727815847573,-933.0,0.0001328,2]
[339657844,1727815847582,-554.0,0.0001328,2]
[339657845,1727815847591,-351.525,0.0001328,2]
[339657846,1727815847600,-804.0,0.0001328,2]
[339657847,1727815847610,-150.0,0.0001328,2]
[339657848,1727815847619,-787.169,0.0001328,2]
[339657849,1727815847629,-1000.0,0.00013478,2]
[339657850,1727815847639,-5008.45362,0.000135,2]
[339657851,1727815847648,-197.08,0.00013519,2]
[339657852,1727815847657,-11161.73266738,0.0001361,2]
[339657853,1727815847667,-200.0,0.00013699,2]
[339657854,1727815847676,-150.0,0.00013699,2]
[339657855,1727815847686,-500.0,0.00013699,2]
[339657856,1727815847700,-150.31,0.00013789,2]
[339657857,1727815847715,-150.31,0.00013789,2]
[339657858,1727815847724,-150.31,0.00013789,2]
[339657859,1727815847734,-150.31,0.0001379,2]
[339657860,1727815847743,-18749.38409985,0.00013799,2]
[339657861,1727815847757,-12643.10906386,0.00013799,2]
[339657862,1727815847768,-1511.77332,0.00013799,2]
[339657863,1727815847780,-611.7,0.00013799,2]
[339657864,1727815847791,-35943.60915522,0.00013799,2]
[339657865,1727815866220,356.18773919,0.0002,120]
[339657866,1727815949343,783.0,0.00022,120]
[339657867,1727815956527,300.0,0.00022,120]
[339657868,1727815956933,300.0,0.00022,120]
[339657869,1727815957150,300.0,0.00022,120]
[339657870,1727815957331,300.0,0.00022,120]
[339657871,1727815957535,300.0,0.00022,120]
[339657872,1727815957934,300.0,0.00022,120]
[339657873,1727815958162,300.0,0.00022,120]
[339657874,1727815958340,300.0,0.00022,120]
[339657875,1727815958562,300.0,0.00022,120]
[339657876,1727815958826,300.0,0.00022,120]
[339657877,1727815959028,300.0,0.00022,120]
[339657878,1727815959527,300.0,0.00022,120]
[339657879,1727815959878,300.0,0.00022,120]
[339657880,1727815960059,300.0,0.00022,120]
[339657881,1727815960304,300.0,0.00022,120]
[339657882,1727815960583,300.0,0.00022,120]
[339657883,1727815960712,300.0,0.00022,120]
[339657884,1727815960930,300.0,0.00022,120]
[339657885,1727815961140,300.0,0.00022,120]
[339657886,1727815961398,300.0,0.00022,120]
[339657887,1727815961602,300.0,0.00022,120]
[339657888,1727815961813,300.0,0.00022,120]
[339657889,1727815962017,300.0,0.00022,120]
[339657890,1727815962302,300.0,0.00022,120]
[339657891,1727815962555,365.99,0.00022,120]
[339657892,1727815963413,300.0,0.00022,120]
[339657893,1727815963798,300.0,0.00022,120]
[339657894,1727815964074,300.0,0.00022,120]
[339657895,1727815964479,300.0,0.00022,120]
[339657896,1727815964639,300.0,0.00022,120]
[339657897,1727815964877,300.0,0.00022,120]
[339657898,1727815965789,300.0,0.00022,120]
[339657899,1727815965898,300.0,0.00022,120]
[339657900,1727815965967,300.0,0.00022,120]
[339657901,1727815966042,300.0,0.00022,120]
[339657902,1727815966116,300.0,0.00022,120]
[339657903,1727815966226,300.0,0.00022,120]
[339657904,1727815966833,300.0,0.00022,120]
[339657905,1727815966988,300.0,0.00022,120]
[339657906,1727815967090,300.0,0.00022,120]
[339657907,1727815967195,300.0,0.00022,120]
[339657908,1727815967602,300.0,0.00022,120]
[339657909,1727815968004,300.0,0.00022,120]
[339657910,1727815968185,300.0,0.00022,120]
[339657911,1727815968387,300.0,0.00022,120]
[339657912,1727815968570,300.0,0.00022,120]
[339657913,1727815968795,300.0,0.00022,120]
[339657914,1727815969265,300.0,0.00022,120]
[339657915,1727815969433,300.0,0.00022,120]
[339657916,1727815969829,300.0,0.00022,120]
[339657917,1727815970138,300.0,0.00022,120]
[339657918,1727815970321,503.99,0.00022,120]
[339657919,1727815972253,300.0,0.00022,120]
[339657920,1727815972490,300.0,0.00022,120]
[339657921,1727815972675,300.0,0.00022,120]
[339657922,1727815972934,599.99,0.00022,120]
[339657923,1727816003431,1603.54,0.00022,120]
[339657924,1727816005599,300.0,0.00022,120]
[339657925,1727816006068,300.0,0.00022,120]
[339657926,1727816006138,300.0,0.00022,120]
[339657927,1727816006336,300.0,0.00022,120]
[339657928,1727816006754,300.0,0.00022,120]
[339657929,1727816006870,300.0,0.00022,120]
[339657930,1727816007102,300.0,0.00022,120]
[339657931,1727816007313,300.0,0.00022,120]
[339657932,1727816007528,300.0,0.00022,120]
[339657933,1727816007731,300.0,0.00022,120]
[339657934,1727816008868,300.0,0.00022,120]
[339657935,1727816008938,300.0,0.00022,120]
[339657936,1727816009005,300.0,0.00022,120]
[339657937,1727816009241,300.0,0.00022,120]
[339657938,1727816009385,300.0,0.00022,120]
[339657939,1727816009591,300.0,0.00022,120]
[339657940,1727816009757,300.0,0.00022,120]
[339657941,1727816009943,300.0,0.00022,120]
[339657942,1727816010227,300.0,0.00022,120]
[339657943,1727816010388,300.0,0.00022,120]
[339657944,1727816010592,300.0,0.00022,120]
[339657945,1727816010825,300.0,0.00022,120]
[339657946,1727816011430,300.0,0.00022,120]
[339657947,1727816011596,300.0,0.00022,120]
[339657948,1727816011765,300.0,0.00022,120]
[339657949,1727816011953,300.0,0.00022,120]
[339657950,1727816012189,300.0,0.00022,120]
[339657951,1727816012377,300.0,0.00022,120]
[339657952,1727816012629,300.0,0.00022,120]
[339657953,1727816012762,300.0,0.00022,120]
[339657954,1727816012967,300.0,0.00022,120]
[339657955,1727816013154,300.0,0.00022,120]
[339657956,1727816013406,300.0,0.00022,120]
[339657957,1727816013615,300.0,0.00022,120]
[339657958,1727816013812,300.0,0.00022,120]
[339657959,1727816013991,300.0,0.00022,120]
[339657960,1727816014425,300.0,0.00022,120]
[339657961,1727816014516,300.0,0.00022,120]
[339657962,1727816014654,300.0,0.00022,120]
[339657963,1727816014888,300.0,0.00022,120]
[339657964,1727816014985,200.0,0.00021155,120]
[339657965,1727816015032,300.0,0.00022,120]
[339657966,1727816015412,300.0,0.00022,120]
[339657967,1727816015822,300.0,0.00022,120]
[339657968,1727816016027,300.0,0.00022,120]
[339657969,1727816016215,300.0,0.00022,120]
[339657970,1727816016420,300.0,0.00022,120]
[339657971,1727816016638,300.0,0.00022,120]
[339657972,1727816016835,300.0,0.00022,120]
[339657973,1727816017005,300.0,0.00022,120]
[339657974,1727816017190,300.0,0.00022,120]
[339657975,1727816017509,300.0,0.00022,120]
[339657976,1727816017762,300.0,0.00022,120]
[339657977,1727816017961,300.0,0.00022,120]
[339657978,1727816018137,300.0,0.00022,120]
[339657979,1727816018353,300.0,0.00022,120]
[339657980,1727816019565,300.0,0.00022,120]
[339657981,1727816019637,300.0,0.00022,120]
[339657982,1727816019710,300.0,0.00022,120]
[339657983,1727816019782,300.0,0.00022,120]
[339657984,1727816019847,300.0,0.00022,120]
[339657985,1727816019912,300.0,0.00022,120]
[339657986,1727816019997,300.0,0.00022,120]
[339657987,1727816020078,300.0,0.00022,120]
[339657988,1727816020167,300.0,0.00022,120]
[339657989,1727816020363,300.0,0.00022,120]
[339657990,1727816020542,300.0,0.00022,120]
[339657991,1727816020738,300.0,0.00022,120]
[339657992,1727816020915,300.0,0.00022,120]
[339657993,1727816021358,300.0,0.00022,120]
[339657994,1727816021612,300.0,0.00022,120]
[339657995,1727816021802,300.0,0.00022,120]
[339657996,1727816022024,300.0,0.00022,120]
[339657997,1727816027444,300.0,0.00022,120]
[339657998,1727816027695,300.0,0.00022,120]
[339657999,1727816027894,300.0,0.00022,120]
[339658000,1727816028096,300.0,0.00022,120]
[339658001,1727816028303,300.0,0.00022,120]
[339658002,1727816028502,300.0,0.00022,120]
[339658003,1727816028728,300.0,0.00022,120]
[339658004,1727816028926,300.0,0.00022,120]
[339658005,1727816029128,300.0,0.00022,120]
[339658006,1727816029372,300.0,0.00022,120]
[339658007,1727816030451,300.0,0.00022,120]
[339658008,1727816030538,300.0,0.00022,120]
[339658009,1727816030651,300.0,0.00022,120]
[339658010,1727816030735,300.0,0.00022,120]
[339658011,1727816030794,300.0,0.00022,120]
[339658012,1727816030886,300.0,0.00022,120]
[339658013,1727816031166,300.0,0.00022,120]
[339658014,1727816031342,300.0,0.00022,120]
[339658015,1727816031565,300.0,0.00022,120]
[339658016,1727816031748,300.0,0.00022,120]
[339658017,1727816031917,300.0,0.00022,120]
[339658018,1727816032163,300.0,0.00022,120]
[339658019,1727816032306,300.0,0.00022,120]
[339658020,1727816032533,300.0,0.00022,120]
[339658021,1727816032735,300.0,0.00022,120]
[339658022,1727816033131,300.0,0.00022,120]
[339658023,1727816033388,300.0,0.00022,120]
[339658024,1727816033584,300.0,0.00022,120]
[339658025,1727816033866,300.0,0.00022,120]
[339658026,1727816034118,300.0,0.00022,120]
[339658027,1727816034390,300.0,0.00022,120]
[339658028,1727816034578,300.0,0.00022,120]
[339658029,1727816034703,300.0,0.00022,120]
[339658030,1727816034887,300.0,0.00022,120]
[339658031,1727816035099,300.0,0.00022,120]
[339658032,1727816035304,300.0,0.00022,120]
[339658033,1727816035516,300.0,0.00022,120]
[339658034,1727816035691,300.0,0.00022,120]
[339658035,1727816036777,300.0,0.00022,120]
[339658036,1727816036850,300.0,0.00022,120]
[339658037,1727816036928,300.0,0.00022,120]
[339658038,1727816037030,300.0,0.00022,120]
[339658039,1727816037105,300.0,0.00022,120]
[339658040,1727816037195,300.0,0.00022,120]
[339658041,1727816037275,300.0,0.00022,120]
[339658042,1727816037435,300.0,0.00022,120]
[339658043,1727816037839,300.0,0.00022,120]
[339658044,1727816038050,300.0,0.00022,120]
[339658045,1727816038240,300.0,0.00022,120]
[339658046,1727816038428,300.0,0.00022,120]
[339658047,1727816038610,300.0,0.00022,120]
[339658048,1727816038836,300.0,0.00022,120]
[339658049,1727816039221,300.0,0.00022,120]
[339658050,1727816039421,300.0,0.00022,120]
[339658051,1727816039686,300.0,0.00022,120]
[339658052,1727816039901,300.0,0.00022,120]
[339658053,1727816040106,300.0,0.00022,120]
[339658054,1727816040290,300.0,0.00022,120]
[339658055,1727816041214,300.0,0.00022,120]
[339658056,1727816041281,300.0,0.00022,120]
[339658057,1727816041376,300.0,0.00022,120]
[339658058,1727816041455,300.0,0.00022,120]
[339658059,1727816041542,300.0,0.00022,120]
[339658060,1727816041976,300.0,0.00022,120]
[339658061,1727816042206,300.0,0.00022,120]
[339658062,1727816042402,300.0,0.00022,120]
[339658063,1727816042615,300.0,0.00022,120]
[339658064,1727816042906,300.0,0.00022,120]
[339658065,1727816043123,300.0,0.00022,120]
[339658066,1727816043345,300.0,0.00022,120]
[339658067,1727816043557,300.0,0.00022,120]
[339658068,1727816043761,300.0,0.00022,120]
[339658069,1727816043930,300.0,0.00022,120]
[339658070,1727816044144,300.0,0.00022,120]
[339658071,1727816044363,300.0,0.00022,120]
[339658072,1727816045003,300.0,0.00022,120]
[339658073,1727816045246,300.0,0.00022,120]
[339658074,1727816045639,300.0,0.00022,120]
[339658075,1727816045844,300.0,0.00022,120]
[339658076,1727816046088,300.0,0.00022,120]
[339658077,1727816046282,300.0,0.00022,120]
[339658078,1727816046474,300.0,0.00022,120]
[339658079,1727816046673,300.0,0.00022,120]
[339658080,1727816047070,300.0,0.00022,120]
[339658081,1727816047193,300.0,0.00022,120]
[339658082,1727816047344,300.0,0.00022,120]
[339658083,1727816047542,300.0,0.00022,120]
[339658084,1727816047603,1603.56245556,0.00022,120]
[339658085,1727816047844,300.0,0.00022,120]
[339658086,1727816048076,300.0,0.00022,120]
[339658087,1727816048260,300.0,0.00022,120]
[339658088,1727816048480,300.0,0.00022,120]
[339658089,1727816048682,300.0,0.00022,120]
[339658090,1727816048863,300.0,0.00022,120]
[339658091,1727816049024,300.0,0.00022,120]
[339658092,1727816049202,300.0,0.00022,120]
[339658093,1727816049545,300.0,0.00022,120]
[339658094,1727816049737,300.0,0.00022,120]
[339658095,1727816049933,300.0,0.00022,120]
[339658096,1727816050433,300.0,0.00022,120]
[339658097,1727816050613,300.0,0.00022,120]
[339658098,1727816050839,300.0,0.00022,120]
[339658099,1727816051026,300.0,0.00022,120]
[339658100,1727816052424,300.0,0.00022,120]
[339658101,1727816052600,300.0,0.00022,120]
[339658102,1727816052662,300.0,0.00022,120]
[339658103,1727816052733,300.0,0.00022,120]
[339658104,1727816052784,300.0,0.00022,120]
[339658105,1727816052865,300.0,0.00022,120]
[339658106,1727816052919,300.0,0.00022,120]
[339658107,1727816052991,300.0,0.00022,120]
[339658108,1727816053032,300.0,0.00022,120]
[339658109,1727816053099,300.0,0.00022,120]
[339658110,1727816053144,300.0,0.00022,120]
[339658111,1727816053229,300.0,0.00022,120]
[339658112,1727816053297,300.0,0.00022,120]
[339658113,1727816053349,300.0,0.00022,120]
[339658114,1727816053426,300.0,0.00022,120]
[339658115,1727816053471,300.0,0.00022,120]
[339658116,1727816053535,300.0,0.00022,120]
[339658117,1727816053690,300.0,0.00022,120]
[339658118,1727816053737,300.0,0.00022,120]
[339658119,1727816053798,300.0,0.00022,120]
[339658120,1727816053844,300.0,0.00022,120]
[339658121,1727816053978,300.0,0.00022,120]
[339658122,1727816054029,300.0,0.00022,120]
[339658123,1727816054225,300.0,0.00022,120]
[339658124,1727816054268,300.0,0.00022,120]
[339658125,1727816054447,300.0,0.00022,120]
[339658126,1727816054490,460.0,0.00022,120]
[339658127,1727816054665,300.0,0.00022,120]
[339658128,1727816055039,300.0,0.00022,120]
[339658129,1727816055256,300.0,0.00022,120]
[339658130,1727816055325,300.0,0.00022,120]
[339658131,1727816055533,300.0,0.00022,120]
[339658132,1727816055712,300.0,0.00022,120]
[339658133,1727816055814,300.0,0.00022,120]
[339658134,1727816055909,300.0,0.00022,120]
[339658135,1727816055962,300.0,0.00022,120]
[339658136,1727816056086,300.0,0.00022,120]
[339658137,1727816056174,300.0,0.00022,120]
[339658138,1727816056311,300.0,0.00022,120]
[339658139,1727816056416,300.0,0.00022,120]
[339658140,1727816056546,300.0,0.00022,120]
[339658141,1727816056661,300.0,0.00022,120]
[339658142,1727816056722,300.0,0.00022,120]
[339658143,1727816056921,300.0,0.00022,120]
[339658144,1727816056992,300.0,0.00022,120]
[339658145,1727816057076,300.0,0.00022,120]
[339658146,1727816057177,300.0,0.00022,120]
[339658147,1727816057294,300.0,0.00022,120]
[339658148,1727816057386,300.0,0.00022,120]
[339658149,1727816057529,300.0,0.00022,120]
[339658150,1727816057633,300.0,0.00022,120]
[339658151,1727816057760,300.0,0.00022,120]
[339658152,1727816057867,300.0,0.00022,120]
[339658153,1727816057951,300.0,0.00022,120]
[339658154,1727816058142,300.0,0.00022,120]
[339658155,1727816058341,300.0,0.00022,120]
[339658156,1727816058581,300.0,0.00022,120]
[339658157,1727816058738,300.0,0.00022,120]
[339658158,1727816058819,300.0,0.00022,120]
[339658159,1727816058952,300.0,0.00022,120]
[339658160,1727816059094,300.0,0.00022,120]
[339658161,1727816059145,300.0,0.00022,120]
[339658162,1727816173307,1000.0,0.00021,62]
[339658180,1727817032146,-354.64,0.00010058,2]
[339658181,1727817032159,-3682.10748476,0.000107,2]
[339658182,1727817032171,-147.25731524,0.000107,2]
[339658183,1727817032180,-300.0,0.00010799,2]
[339658184,1727817032190,-6236.01227135,0.000108,2]
[339658185,1727817032222,-449.09542865,0.000108,2]
[339658186,1727817032232,-150.0,0.00010858,2]
[339658187,1727817032242,-500.0,0.00010859,2]
[339658188,1727817032251,-282.85647692,0.00010859,2]
[339658189,1727817032262,-497.48514,0.00010859,2]
[339658190,1727817032274,-1697.0288294,0.00010859,2]
[339658191,1727817032285,-2408.87747833,0.00010859,2]
[339658192,1727817032308,-9518.75687535,0.00010859,2]
[339658193,1727817032317,-1000.0,0.00010859,2]
[339658194,1727817032327,-1926.37548045,0.00010859,2]
[339658195,1727817032336,-185.09,0.00010959,2]
[339658196,1727817032346,-151.89,0.00010959,2]
[339658197,1727817032355,-265.96,0.00011,2]
[339658198,1727817032365,-250.0,0.00011,2]
[339658199,1727817032375,-168.886052,0.00011536,2]
[339658200,1727817032384,-184.404795,0.00011536,2]
[339658201,1727817032393,-303.08,0.00011832,2]
[339658202,1727817032406,-4785.20982014,0.00011842,2]
[339658203,1727817032417,-11834.47105202,0.00011842,2]
[339658204,1727817032429,-2774.43487564,0.00011842,2]
[339658205,1727817032441,-315.0,0.00011842,2]
[339658206,1727817032452,-4190.8842522,0.00011842,2]
[339658207,1727817032462,-404.85,0.00011848,2]
[339658208,1727817032472,-303.08,0.00011863,2]
[339658209,1727817032482,-420.0,0.00011869,2]
[339658210,1727817032491,-81.1857478,0.00011873,2]
[339658211,1727817032503,-918.8042522,0.00011873,2]
[339658212,1727817032512,-499.99,0.00011873,2]
[339658213,1727817032522,-412.75843358,0.00011873,2]
[339658214,1727817032537,-87.24156642,0.00011873,2]
[339658215,1727817032547,-700.48380467,0.00011873,2]
[339658216,1727817032558,-809.14403611,0.00011873,2]
[339658217,1727817032582,-490.37215922,0.00011873,2]
[339658218,1727817032592,-303.08,0.00011878,2]
[339658219,1727817032602,-12443.25,0.00011888,2]
[339658220,1727817032614,-250.0,0.00011899,2]
[339658221,1727817032623,-255.0,0.000119,2]
[339658222,1727817032634,-155.52,0.00011917,2]
[339658223,1727817032643,-626.0,0.0001192,2]
[339658224,1727817032655,-303.08,0.00011931,2]
[339658225,1727817032665,-518.16,0.00011933,2]
[339658226,1727817032674,-471.23,0.00011941,2]
[339658227,1727817032684,-6198.33,0.00011975,2]
[339658228,1727817032693,-250.0,0.00011996,2]
[339658229,1727817032703,-303.08,0.00012003,2]
[339658230,1727817032712,-361.86,0.00012006,2]
[339658231,1727817032722,-779.08,0.0001201,2]
[339658232,1727817032731,-1078.14,0.00012013,2]
[339658233,1727817032740,-250.0,0.00012033,2]
[339658234,1727817032750,-278.2,0.00012034,2]
[339658235,1727817032759,-303.08,0.00012038,2]
[339658236,1727817032771,-303.08,0.00012038,2]
[339658237,1727817032780,-14837.08,0.00012048,2]
[339658238,1727817032791,-351.019,0.00012109,2]
[339658239,1727817032800,-184.404795,0.00012113,2]
[339658240,1727817032810,-351.019,0.00012164,2]
[339658241,1727817032819,-351.019,0.00012219,2]
[339658242,1727817032829,-1000.0,0.0001222,2]
[339658243,1727817032838,-351.019,0.00012275,2]
[339658244,1727817032849,-1252.76766456,0.000123,2]
[339658245,1727817032858,-354.64,0.00012321,2]
[339658247,1727817032868,-351.019,0.00012331,2]
[339658248,1727817032878,-351.019,0.00012388,2]
[339658249,1727817032888,-351.019,0.00012445,2]
[339658250,1727817032900,-351.019,0.00012503,2]
[339658251,1727817032909,-351.019,0.00012561,2]
[339658252,1727817032919,-351.019,0.0001262,2]
[339658253,1727817032929,-170.11,0.00012678,2]
[339658254,1727817032938,-303.08,0.0001279,2]
[339658256,1727817032948,-303.3,0.000128,2]